[Event "75th ARM-ch Women 2020"]
[Site "Yerevan"]
[Date "2020.01.14"]
[Round "3.1"]
[White "Khachatryan, Veronika"]
[Black "Arakelyan, Nare"]
[Result "0-1"]
[ECO "D00"]
[WhiteElo "1905"]
[BlackElo "1913"]
[Annotator "NA"]
[PlyCount "96"]
[EventDate "2020.01.12"]
[EventType "tourn"]
[EventCountry "ARM"]
[SourceTitle "playchess.com"]
[Source "ChessBase"]
[SourceQuality "1"]
[TimeControl "40/5400+30:1800+30"]

{[%evp 8,95,16,-11,32767,32767,32767,26,26,64,38,35,140,27,31,-27,38,37,12,-124,-137,-126,-112,32767,32767,32767,32767,-310,-333,32767,32767,32767,32767,32767,32767,32767,32767,-545,-513,-506,-612,-750,-310,-313,-195,-216,32767,-281,-22,-295,-334,-410,-270,-273,-308,-329,-277,-343,-245,-206,-275,-267,-118,-152,-100,-333,-347,-309,-107,-264,-126,-158,0,-246,-175,-236,-235,32767,32767,32767,32767,-339,-406,32767,32767,-516,-29995,-29996,-29997,-29997]} 1. d4 {[%emt 0:00:00]} d5 {[%emt 0:00:00]} 2. Bf4 {[%emt 0:00:00]} Nf6 {[%emt 0:00:00]} 3. e3 {[%emt 0:00:17]} Bf5 {[%emt 0:00:22]} 4. Nf3 {[%emt 0:00:32]} e6 {[%emt 0:00:12]} 5. Ne5 {[%emt 0:04:55]} Bd6 {[%emt 0:05:01]} 6. Be2 {[%emt 0:03:03] D02: 1 d4 d5 2 Nf3 sidelines, including 2...Nf6 3 g3 and 2...Nf6 3 Bf4} O-O {[%emt 0:00:30]} (6... Nfd7 7. Nf3 Bxf4 8. exf4 O-O 9. O-O c5 10. dxc5 Nxc5 11. Nd4 Bg6 12. Nd2 Qf6 13. N2b3 Nxb3 14. axb3 Qxf4 {1-0 (42) Gholami,A (2542)-Wen,Y (2586) Qingdao 2019}) 7. g4 {[%emt 0:02:26]} Be4 {[%emt 0:00:08]} 8. f3 {[%emt 0:05:16]} Bg6 $1 {[%emt 0:00:04]} 9. h4 {[%emt 0:00:25]} h6 {[%emt 0:00:13]} ({Better is} 9... h5 $1 $14) 10. Nxg6 {[%emt 0:11:05]} ({Better is} 10. h5 $16 Bh7 11. g5 hxg5 12. Bxg5) 10... fxg6 {[%emt 0:00:04]} 11. Be5 $146 {[%emt 0:00:38]} ({White should try} 11. Bxd6 $14 Qxd6 12. g5 hxg5 13. hxg5 Qg3+ 14. Kd2 Qxg5 15. Qg1 Qxg1 16. Rxg1) ({Predecessor:} 11. Bd3 Qe8 12. Bxd6 cxd6 13. c3 {1-0 (40) Thiem,S (1424)-Walk,C (1274) Prichsenstadt 2006}) 11... Nc6 {[%emt 0:04:18]} (11... c5 $11) 12. f4 $1 {[%emt 0:11:41]} Ne4 {[%emt 0:05:04]} 13. Bd3 {[%emt 0:03:15]} ({Better is} 13. Bxd6 $15 cxd6 14. Nc3) 13... Nxe5 {[%emt 0:05:55]} 14. dxe5 {[%emt 0:00:17] [#]} Bxe5 $1 {[%emt 0:00:41]} 15. Bxe4 {[%emt 0:10:30]} Bxb2 {[%emt 0:00:06]} 16. Bxg6 {[%emt 0:00:06]} Bxa1 {[%emt 0:00:03]} 17. g5 {[%emt 0:00:19]} d4 {[%emt 0:00:36]} 18. gxh6 {[%emt 0:15:03]} dxe3 {[%emt 0:00:58]} 19. Qg4 {[%emt 0:04:32]} Qd6 {[%emt 0:02:52]} 20. O-O {[%emt 0:05:52]} Bd4 {[%emt 0:01:33]} 21. Kg2 {[%emt 0:04:11]} gxh6 {[%emt 0:01:00]} 22. Kh3 {[%emt 0:03:20]} Kh8 {[%emt 0:00:37]} 23. Qh5 {[%emt 0:01:44]} Bg7 {[%emt 0:00:27]} 24. Bd3 {[%emt 0:01:50]} Rf6 {[%emt 0:00:02]} (24... Rxf4 $142 25. Qg6 Kg8 26. Qh7+ Kf8) 25. Nc3 {[%emt 0:00:28]} Qf8 {[%emt 0:03:32]} 26. Qg4 {[%emt 0:02:27]} e5 {[%emt 0:00:56]} 27. Nd5 {[%emt 0:00:40] [#]} (27. f5 $142) 27... h5 $2 {[%emt 0:08:52]} (27... e4 $1 $19 28. Bxe4 Rf7 29. Nxe3 Re8) 28. Qxh5+ $2 {[%emt 0:02:43]} (28. Qg5 $11 {and White has nothing to worry.}) 28... Rh6 {[%emt 0:00:03]} 29. Qg4 {[%emt 0:01:07]} e4 {[%emt 0:04:31]} 30. Bxe4 {[%emt 0:02:46]} Re8 {[%emt 0:00:05]} 31. f5 {[%emt 0:01:13]} c6 {[%emt 0:02:06]} 32. Nxe3 {[%emt 0:02:16]} Bf6 {[%emt 0:01:26]} 33. Ng2 {[%emt 0:00:34]} Qa3+ {[%emt 0:02:05]} 34. Bd3 {[%emt 0:00:41]} Rg8 {[%emt 0:01:31]} (34... Qxa2 $19 {is more deadly.} 35. Rf3 Qa1) 35. Qf4 {[%emt 0:00:22]} Kh7 {[%emt 0:00:05]} 36. Qc7+ $2 {[%emt 0:00:50]} (36. Rf3 $17 Qc5 37. Rg3 Rxg3+ 38. Qxg3) 36... Rg7 {[%emt 0:00:05]} 37. Qf4 {[%emt 0:00:24]} Qf8 $2 {[%emt 0:01:30]} (37... Qxa2 $19 {has better winning chances.} 38. Rf3 Qa1) 38. Rf2 $2 {[%emt 0:00:30]} (38. Rf3 $17) 38... Rg8 {[%emt 0:00:53]} 39. Bc4 {[%emt 0:00:23] [#]} Rg7 {[%emt 0:01:05]} ({Black should play} 39... Rg5 $1 $17 40. Rf3 Qg7) 40. Bd3 $1 {[%emt 0:00:00]} Qf7 {[%emt 0:00:00]} 41. Bc4 {[%emt 0:02:04]} Qe7 $19 {[%emt 0:03:15]} 42. Bd3 {[%emt 0:03:02]} Qa3 {[%emt 0:00:43]} 43. Re2 {[%emt 0:01:50]} Qxa2 {[%emt 0:01:29]} 44. Re8 {[%emt 0:12:16]} Qd5 {[%emt 0:07:51]} 45. Bf1 {[%emt 0:07:42]} Rxh4+ {[%emt 0:02:46]} 46. Qxh4+ {[%emt 0:00:45]} Bxh4 {[%emt 0:00:03]} 47. Kxh4 {[%emt 0:01:06]} Qd4+ {[%emt 0:00:11]} 48. Kh3 {[%emt 0:00:11]} Qg1 {[%emt 0:00:19]} 0-1

[Event "75th ARM-ch Women 2020"]
[Site "Yerevan"]
[Date "2020.01.14"]
[Round "3.2"]
[White "Kursova, Maria"]
[Black "Gevorgyan, Maria"]
[Result "0-1"]
[ECO "A65"]
[WhiteElo "2241"]
[BlackElo "2187"]
[Annotator "ChessBase"]
[PlyCount "74"]
[EventDate "2020.01.12"]
[EventType "tourn"]
[EventCountry "ARM"]
[SourceTitle "playchess.com"]
[Source "ChessBase"]
[SourceQuality "1"]
[TimeControl "40/5400+30:1800+30"]

1. d4 {[%emt 0:00:09]} Nf6 {[%emt 0:00:00]} 2. c4 {[%emt 0:00:17]} c5 {[%emt 0:00:00]} 3. d5 {[%emt 0:00:10]} e6 {[%emt 0:00:00]} 4. Nc3 {[%emt 0:00:20]} exd5 {[%emt 0:00:00]} 5. cxd5 {[%emt 0:00:06]} d6 {[%emt 0:00:06]} 6. e4 {[%emt 0:00:23]} g6 {[%emt 0:00:05]} 7. h3 {[%emt 0:00:38]} Bg7 {[%emt 0:00:40]} 8. Nf3 {[%emt 0:00:19]} a6 {[%emt 0:06:49]} 9. a4 {[%emt 0:01:19]} Nh5 {[%emt 0:00:05]} 10. Be2 {[%emt 0:20:30]} Nd7 {[%emt 0:01:29]} 11. Bg5 {[%emt 0:02:45]} Bf6 {[%emt 0:00:34]} 12. Be3 {[%emt 0:01:21]} Ng7 {[%emt 0:03:03]} 13. O-O {[%emt 0:00:55]} O-O {[%emt 0:03:51]} 14. Qd2 {[%emt 0:15:25]} Qe7 {[%emt 0:04:54]} 15. Bd3 {[%emt 0:10:49]} b6 {[%emt 0:29:48]} 16. Rfe1 {[%emt 0:05:18]} Bb7 {[%emt 0:00:39]} 17. Rab1 {[%emt 0:04:32]} Rac8 {[%emt 0:01:45]} 18. b3 {[%emt 0:03:29]} Rfe8 {[%emt 0:15:44]} 19. Rbc1 {[%emt 0:07:57]} Ne5 {[%emt 0:04:51]} 20. Nxe5 {[%emt 0:00:34]} Bxe5 {[%emt 0:00:02]} 21. f4 {[%emt 0:02:27]} Bd4 {[%emt 0:02:09]} 22. Bxd4 {[%emt 0:03:25]} cxd4 {[%emt 0:00:03]} 23. Ne2 {[%emt 0:00:06]} Rxc1 {[%emt 0:00:11]} 24. Qxc1 {[%emt 0:03:15]} f5 {[%emt 0:03:19]} 25. Nxd4 {[%emt 0:02:36]} Bxd5 {[%emt 0:07:05]} 26. Bc4 {[%emt 0:00:46]} Bxc4 {[%emt 0:03:07]} 27. Qxc4+ {[%emt 0:00:02]} Kh8 {[%emt 0:00:05]} 28. Nf3 {[%emt 0:06:58]} fxe4 {[%emt 0:05:52]} 29. Ng5 {[%emt 0:00:07]} b5 {[%emt 0:00:02]} 30. axb5 {[%emt 0:02:26]} axb5 {[%emt 0:00:02]} 31. Qd5 {[%emt 0:00:56]} h6 {[%emt 0:00:35]} 32. Nxe4 {[%emt 0:01:30]} Nf5 {[%emt 0:04:00]} 33. Kh2 {[%emt 0:03:57]} Qe6 {[%emt 0:02:06]} 34. Qxb5 {[%emt 0:00:37]} Re7 {[%emt 0:00:01]} 35. Re2 {[%emt 0:00:30]} Nd4 {[%emt 0:00:55]} 36. Qb8+ {[%emt 0:00:29]} Re8 {[%emt 0:00:01]} 37. Nxd6 {[%emt 0:00:35]} Rxb8 {[%emt 0:00:07]} 0-1

[Event "75th ARM-ch Women 2020"]
[Site "Yerevan"]
[Date "2020.01.14"]
[Round "3.4"]
[White "Khachatryan, Anna"]
[Black "Avetisyan, Mariam"]
[Result "1/2-1/2"]
[ECO "A46"]
[WhiteElo "2051"]
[BlackElo "2163"]
[Annotator "ChessBase"]
[PlyCount "72"]
[EventDate "2020.01.12"]
[EventType "tourn"]
[EventCountry "ARM"]
[SourceTitle "playchess.com"]
[Source "ChessBase"]
[SourceQuality "1"]
[TimeControl "40/5400+30:1800+30"]

1. d4 {[%emt 0:00:00]} Nf6 {[%emt 0:00:00]} 2. Nf3 {[%emt 0:01:20]} e6 {[%emt 0:00:13]} 3. Bf4 {[%emt 0:00:04]} Be7 {[%emt 0:01:28]} 4. e3 {[%emt 0:02:12]} d5 {[%emt 0:04:45]} 5. Nbd2 {[%emt 0:02:19]} Nbd7 {[%emt 0:02:15]} 6. Bd3 {[%emt 0:00:10]} c5 {[%emt 0:01:40]} 7. c3 {[%emt 0:00:04]} O-O {[%emt 0:09:00]} 8. Ne5 {[%emt 0:00:21]} b6 {[%emt 0:25:50]} 9. Nc6 {[%emt 0:02:41]} Qe8 {[%emt 0:00:17]} 10. Nxe7+ {[%emt 0:00:06]} Qxe7 {[%emt 0:00:03]} 11. O-O {[%emt 0:01:27]} Bb7 {[%emt 0:05:12]} 12. Nf3 {[%emt 0:08:14]} Ne4 {[%emt 0:11:01]} 13. h3 {[%emt 0:17:13]} Rfd8 {[%emt 0:06:43]} 14. Bh2 {[%emt 0:05:12]} f6 {[%emt 0:05:58]} 15. Qc2 {[%emt 0:17:47]} f5 {[%emt 0:04:30]} 16. a4 {[%emt 0:20:21]} a5 {[%emt 0:06:10]} 17. Rfb1 {[%emt 0:03:23]} Rdc8 {[%emt 0:03:10]} 18. Qe2 {[%emt 0:00:40]} Nd6 {[%emt 0:02:53]} 19. Ne5 {[%emt 0:07:02]} Nxe5 {[%emt 0:01:05]} 20. Bxe5 {[%emt 0:00:09]} Nf7 {[%emt 0:01:05]} 21. Bh2 {[%emt 0:01:06]} g6 {[%emt 0:01:45]} 22. Qd2 {[%emt 0:05:29]} Ba6 {[%emt 0:01:49]} 23. Bxa6 {[%emt 0:00:11]} Rxa6 {[%emt 0:00:03]} 24. Qe2 {[%emt 0:00:34]} c4 {[%emt 0:01:10]} 25. b3 {[%emt 0:01:07]} Nd6 {[%emt 0:00:43]} 26. Bxd6 {[%emt 0:00:39]} Qxd6 {[%emt 0:00:03]} 27. bxc4 {[%emt 0:00:51]} Rxc4 {[%emt 0:00:11]} 28. Rb3 {[%emt 0:00:11]} Qc6 {[%emt 0:01:52]} 29. Qb2 {[%emt 0:00:35]} Kf7 {[%emt 0:01:10]} 30. h4 {[%emt 0:01:39]} Ke7 {[%emt 0:00:50]} 31. h5 {[%emt 0:00:44]} Kd7 {[%emt 0:01:11]} 32. hxg6 {[%emt 0:00:47]} hxg6 {[%emt 0:00:03]} 33. g3 {[%emt 0:00:13]} Kc7 {[%emt 0:01:08]} 34. Qa3 {[%emt 0:00:53]} Qd6 {[%emt 0:00:58]} 35. Qxd6+ {[%emt 0:00:37]} Kxd6 {[%emt 0:00:05]} 36. Kf1 {[%emt 0:00:09]} Kd7 {[%emt 0:00:26]} 1/2-1/2

[Event "75th ARM-ch Women 2020"]
[Site "Yerevan"]
[Date "2020.01.14"]
[Round "3.5"]
[White "Ambarjyan, Tereza"]
[Black "Hakobyan, Astghik"]
[Result "1/2-1/2"]
[ECO "C01"]
[WhiteElo "1514"]
[BlackElo "1917"]
[Annotator "NA"]
[PlyCount "173"]
[EventDate "2020.01.12"]
[EventType "tourn"]
[EventCountry "ARM"]
[SourceTitle "playchess.com"]
[Source "ChessBase"]
[SourceQuality "1"]
[TimeControl "40/5400+30:1800+30"]

1. e4 {[%emt 0:00:00]} e6 {[%emt 0:00:00]} 2. d4 {[%emt 0:00:00]} d5 {[%emt 0:00:04]} 3. exd5 {[%emt 0:00:00]} exd5 {[%emt 0:00:07]} 4. Nf3 {[%emt 0:00:00]} Bd6 {[%emt 0:00:25]} 5. c4 {[%emt 0:00:06]} c6 {[%emt 0:04:02]} 6. Nc3 {[%emt 0:01:15]} Ne7 {[%emt 0:02:04]} 7. h3 {[%emt 0:07:37] C01: French: Exchange Variation} (7. Bd3 dxc4 8. Bxc4 O-O 9. h3 Nd7 10. O-O Nb6 11. Bb3 Ned5 12. Re1 Bf5 13. Ne5 Bxe5 14. Rxe5 Qd7 15. Qf3 {1-0 (44) Carlsen,M (2832)-Jobava,B (2707) Leuven 2017}) 7... O-O {[%emt 0:01:00]} 8. Be2 {[%emt 0:01:44]} Bf5 $146 {[%emt 0:03:29]} ({Predecessor:} 8... h6 9. O-O Be6 10. cxd5 Nxd5 11. Re1 Nd7 12. Ne4 Be7 13. Ne5 Nxe5 14. dxe5 {0-1 (30) Pires,G (2145)-Berg,E (2539) Porto 2013}) 9. O-O {[%emt 0:00:45]} h6 {[%emt 0:04:55]} 10. Ne5 {[%emt 0:08:47]} Bxe5 {[%emt 0:07:28]} 11. dxe5 {[%emt 0:00:21]} d4 {[%emt 0:00:10]} 12. Nb1 {[%emt 0:04:49]} Ng6 {[%emt 0:03:56]} (12... d3 $15 13. Bg4 Qd4) 13. f4 $1 {[%emt 0:03:03]} d3 {[%emt 0:12:06]} 14. Bg4 {[%emt 0:06:55]} Qd4+ {[%emt 0:10:09]} 15. Kh2 {[%emt 0:01:19]} Bxg4 {[%emt 0:02:10]} 16. Qxg4 {[%emt 0:01:02]} Qxc4 {[%emt 0:00:32]} 17. Nd2 {[%emt 0:03:27]} Qd5 {[%emt 0:02:21]} 18. Nf3 {[%emt 0:03:34]} Nd7 {[%emt 0:01:46]} 19. h4 {[%emt 0:08:32]} Rad8 {[%emt 0:10:11]} 20. Bd2 {[%emt 0:02:27]} Rfe8 {[%emt 0:15:18]} (20... Ne7 $17 21. b4 Rfe8) 21. h5 {[%emt 0:04:37]} Ne7 {[%emt 0:01:11]} 22. Rfe1 {[%emt 0:06:13]} Qe6 {[%emt 0:01:30]} (22... f5 $17 23. Qh4 c5) 23. Qh4 {[%emt 0:01:38]} ({Better is} 23. Qxe6 $15 fxe6 24. Rac1) 23... Nb6 {[%emt 0:03:20]} 24. b3 {[%emt 0:01:10]} Nf5 {[%emt 0:01:19]} 25. Qf2 {[%emt 0:00:17]} Qd5 {[%emt 0:00:18]} 26. Rad1 {[%emt 0:04:34]} Nd4 {[%emt 0:06:11]} (26... c5 $17) 27. Nh4 {[%emt 0:01:02]} (27. Nxd4 $1 $11 {remains equal.} Qxd4 28. Qxd4 Rxd4 29. Kg3) 27... Nd7 {[%emt 0:04:04]} 28. Qg3 {[%emt 0:00:44]} Ne2 {[%emt 0:01:38]} 29. Qg4 {[%emt 0:01:55]} Nxe5 {[%emt 0:01:11]} 30. fxe5 {[%emt 0:01:59]} Qxe5+ {[%emt 0:00:01]} 31. g3 {[%emt 0:01:58]} Qd4 {[%emt 0:01:21]} 32. Qxd4 {[%emt 0:03:11]} Rxd4 {[%emt 0:00:02]} 33. Ng2 {[%emt 0:06:18]} Re6 {[%emt 0:01:26]} 34. Nf4 {[%emt 0:04:09]} Nxf4 {[%emt 0:00:34]} 35. Bxf4 {[%emt 0:00:13]} Rd5 {[%emt 0:00:31]} 36. Rxe6 {[%emt 0:01:11]} fxe6 {[%emt 0:00:07]} 37. g4 {[%emt 0:01:43]} c5 {[%emt 0:00:32]} 38. Kg3 {[%emt 0:00:54]} b5 {[%emt 0:00:26]} 39. Kf3 {[%emt 0:00:34]} c4 {[%emt 0:00:38]} 40. Bd2 {[%emt 0:00:00]} Kf7 {[%emt 0:00:00]} 41. Bc3 {[%emt 0:03:35]} (41. bxc4 $18 {has better winning chances.} bxc4 42. Ke4) 41... g6 {[%emt 0:09:05]} 42. hxg6+ {[%emt 0:03:38]} Kxg6 {[%emt 0:00:02]} 43. Rd2 {[%emt 0:02:00]} h5 {[%emt 0:04:39]} 44. gxh5+ {[%emt 0:02:36]} Rxh5 {[%emt 0:00:23]} 45. Ke4 {[%emt 0:01:28]} Rd5 {[%emt 0:07:55]} 46. Rf2 {[%emt 0:01:50]} Kg5 {[%emt 0:06:09]} 47. Ke3 {[%emt 0:04:22]} Rd6 {[%emt 0:02:25]} ({Black should try} 47... Rd7) 48. Bd2 {[%emt 0:08:09]} Kg6 {[%emt 0:01:08]} 49. Bc3 {[%emt 0:04:25]} Kg5 {[%emt 0:02:40]} 50. Rf8 {[%emt 0:05:54]} ({White should play} 50. bxc4 bxc4 51. Rg2+ Kf5 52. Rf2+ Kg5 53. a4) 50... Ra6 $11 {[%emt 0:01:12]} 51. Rg8+ {[%emt 0:02:11]} Kf5 {[%emt 0:00:32] [#]} (51... Kh6 $16 {might work better.}) 52. Rf8+ $2 {[%emt 0:00:05]} ({White must play} 52. Rb8 $1 $18) 52... Kg6 {[%emt 0:00:07]} 53. Rg8+ {[%emt 0:00:06]} Kf7 {[%emt 0:00:28]} 54. Rg7+ {[%emt 0:00:19]} Ke8 {[%emt 0:00:45]} 55. Rg2 {[%emt 0:03:08]} Kd7 {[%emt 0:00:36]} 56. Kd4 {[%emt 0:01:41]} Rd6+ {[%emt 0:00:37]} 57. Kc5 {[%emt 0:01:06]} Rd5+ {[%emt 0:00:39]} 58. Kb4 {[%emt 0:00:18]} a5+ {[%emt 0:00:28]} (58... cxb3 $11 {keeps the balance.} 59. axb3 (59. Kxb3 e5 $14) 59... e5) 59. Kxa5 {[%emt 0:00:42]} cxb3 {[%emt 0:00:26]} 60. axb3 {[%emt 0:01:02]} e5 {[%emt 0:00:11]} 61. Bd2 $16 {[%emt 0:00:35]} e4 {[%emt 0:00:28]} 62. Kb4 {[%emt 0:00:24]} Ke6 {[%emt 0:00:37]} 63. Be3 {[%emt 0:00:36]} Rf5 {[%emt 0:00:15]} 64. Kc3 {[%emt 0:00:34]} Rf3 {[%emt 0:00:42]} 65. Kd4 {[%emt 0:00:45]} Rf1 {[%emt 0:00:26]} 66. Kxe4 {[%emt 0:00:34]} Rb1 {[%emt 0:00:08]} 67. Kxd3 {[%emt 0:00:13]} Rxb3+ {[%emt 0:00:05]} 68. Ke4 {[%emt 0:00:44]} Rb1 {[%emt 0:00:24]} 69. Rg6+ {[%emt 0:00:10]} Kf7 {[%emt 0:00:11]} 70. Rb6 {[%emt 0:00:11]} Ke7 {[%emt 0:00:27]} 71. Kd5 {[%emt 0:00:05]} Rb3 {[%emt 0:01:10]} 72. Bd4 {[%emt 0:00:09]} Kf7 {[%emt 0:00:22]} 73. Ke5 {[%emt 0:00:29]} Rb1 {[%emt 0:00:14]} 74. Rf6+ {[%emt 0:01:41]} Ke7 {[%emt 0:01:21]} 75. Kd5 {[%emt 0:00:29]} b4 {[%emt 0:00:33]} 76. Rb6 {[%emt 0:00:45]} Kf7 {[%emt 0:00:11]} 77. Rb7+ {[%emt 0:00:30]} Kg6 {[%emt 0:00:15]} 78. Ke4 {[%emt 0:00:05]} b3 {[%emt 0:00:25]} 79. Rg7+ {[%emt 0:00:22]} Kh6 {[%emt 0:00:19]} 80. Rg2 {[%emt 0:00:19]} Kh7 {[%emt 0:01:46]} 81. Kd3 {[%emt 0:01:07]} Kh6 {[%emt 0:00:34]} 82. Bb2 {[%emt 0:00:15]} Rh1 {[%emt 0:00:25]} 83. Rg3 {[%emt 0:00:39]} Kh5 {[%emt 0:00:11]} 84. Kc3 {[%emt 0:00:34]} Kh4 {[%emt 0:00:11]} 85. Rg8 {[%emt 0:01:03]} Rh3+ {[%emt 0:00:05]} 86. Kc4 {[%emt 0:00:14]} Rg3 {[%emt 0:00:17]} 87. Kd4 1/2-1/2

[Event "75th ARM-ch Women 2020"]
[Site "Yerevan"]
[Date "2020.01.15"]
[Round "4.1"]
[White "Avetisyan, Mariam"]
[Black "Gevorgyan, Maria"]
[Result "0-1"]
[ECO "A48"]
[WhiteElo "2163"]
[BlackElo "2187"]
[Annotator "ChessBase"]
[PlyCount "78"]
[EventDate "2020.01.12"]
[EventType "tourn"]
[EventCountry "ARM"]
[SourceTitle "playchess.com"]
[Source "ChessBase"]
[SourceQuality "1"]
[TimeControl "40/5400+30:1800+30"]

1. d4 {[%emt 0:00:00]} Nf6 {[%emt 0:01:10]} 2. Nf3 {[%emt 0:00:00]} g6 {[%emt 0:00:12]} 3. Bf4 {[%emt 0:00:07]} d6 {[%emt 0:00:33]} 4. h3 {[%emt 0:00:11]} Bg7 {[%emt 0:00:05]} 5. e3 {[%emt 0:00:05]} O-O {[%emt 0:00:25]} 6. Be2 {[%emt 0:00:47]} Nc6 {[%emt 0:00:13]} 7. O-O {[%emt 0:02:37]} e5 {[%emt 0:00:45]} 8. Bh2 {[%emt 0:04:03]} Ne4 {[%emt 0:06:26]} 9. c3 {[%emt 0:05:42]} Qe7 {[%emt 0:13:26]} 10. Na3 {[%emt 0:25:18]} Kh8 {[%emt 0:15:47]} 11. Nc4 {[%emt 0:06:50]} f5 {[%emt 0:03:47]} 12. Re1 {[%emt 0:21:21]} g5 {[%emt 0:01:15]} 13. Nfd2 {[%emt 0:08:39]} Nf6 {[%emt 0:11:27]} 14. b4 {[%emt 0:07:19]} e4 {[%emt 0:01:19]} 15. Qa4 {[%emt 0:07:38]} Bd7 {[%emt 0:03:50]} 16. Qa3 {[%emt 0:02:37]} Qf7 {[%emt 0:06:29]} 17. Rf1 {[%emt 0:03:43]} Qg6 {[%emt 0:00:48]} 18. Qc1 {[%emt 0:00:49]} h5 {[%emt 0:03:07]} 19. Kh1 {[%emt 0:00:18]} Bh6 {[%emt 0:02:23]} 20. Nb3 {[%emt 0:00:37]} h4 {[%emt 0:02:50]} 21. b5 {[%emt 0:00:45]} Ne7 {[%emt 0:00:22]} 22. Nb2 {[%emt 0:00:23]} Rg8 {[%emt 0:00:30]} 23. Rg1 {[%emt 0:00:49]} Rg7 {[%emt 0:05:49]} 24. c4 {[%emt 0:00:35]} g4 {[%emt 0:04:21]} 25. Bf4 {[%emt 0:00:13]} Bxf4 {[%emt 0:00:32]} 26. exf4 {[%emt 0:00:02]} Rag8 {[%emt 0:00:25]} 27. c5 {[%emt 0:00:43]} Qh6 {[%emt 0:01:17]} 28. Nc4 {[%emt 0:00:54]} gxh3 {[%emt 0:03:24]} 29. cxd6 {[%emt 0:00:46]} hxg2+ {[%emt 0:01:56]} 30. Kh2 {[%emt 0:00:03]} cxd6 {[%emt 0:00:04]} 31. Nxd6 {[%emt 0:00:50]} Nfd5 {[%emt 0:00:01]} 32. Nxb7 {[%emt 0:00:31]} Qxf4+ {[%emt 0:01:58]} 33. Qxf4 {[%emt 0:00:04]} Nxf4 {[%emt 0:00:03]} 34. Bf1 {[%emt 0:01:09]} gxf1=Q {[%emt 0:00:55]} 35. Raxf1 {[%emt 0:00:03]} Rg2+ {[%emt 0:01:12]} 36. Rxg2 {[%emt 0:00:56]} Rxg2+ {[%emt 0:00:05]} 37. Kh1 {[%emt 0:00:02]} Bxb5 {[%emt 0:00:07]} 38. Rg1 {[%emt 0:00:18]} h3 {[%emt 0:00:41]} 39. N3a5 {[%emt 0:00:56]} Be2 {[%emt 0:00:28]} 0-1

[Event "75th ARM-ch Women 2020"]
[Site "Yerevan"]
[Date "2020.01.15"]
[Round "4.2"]
[White "Khachatryan, Anna"]
[Black "Ambarjyan, Tereza"]
[Result "1-0"]
[ECO "A05"]
[WhiteElo "2051"]
[BlackElo "1514"]
[Annotator "NA"]
[PlyCount "57"]
[EventDate "2020.01.12"]
[EventType "tourn"]
[EventCountry "ARM"]
[SourceTitle "playchess.com"]
[Source "ChessBase"]
[SourceQuality "1"]
[TimeControl "40/5400+30:1800+30"]

{[%evp 8,54,9,-8,4,-14,32767,32767,32767,32767,32767,32767,32767,32767,32767,32767,32767,32767,-5,-12,3,-22,24,0,0,0,0,-195,0,0,64,32767,32767,32767,32767,271,32767,32767,32767,612,260,314,393,425,404,437,656,677,1313]} 1. Nf3 {[%emt 0:00:00]} Nf6 {[%emt 0:00:00]} 2. g3 {[%emt 0:00:00]} e6 {[%emt 0:00:23]} 3. Bg2 {[%emt 0:00:00]} d5 {[%emt 0:00:04]} 4. O-O {[%emt 0:00:31]} Be7 {[%emt 0:00:21]} 5. d3 {[%emt 0:00:07]} O-O {[%emt 0:00:10]} 6. Nbd2 {[%emt 0:00:02]} b6 {[%emt 0:02:47]} 7. e4 {[%emt 0:00:09]} Bb7 {[%emt 0:00:39]} 8. e5 {[%emt 0:00:05]} Nfd7 {[%emt 0:00:38]} 9. Re1 {[%emt 0:00:02]} c5 {[%emt 0:01:38]} 10. Nf1 {[%emt 0:00:08]} Nc6 {[%emt 0:01:05]} 11. h4 {[%emt 0:00:03]} Rc8 {[%emt 0:02:20] C00: French: Unusual White 2nd moves} 12. N1h2 {[%emt 0:00:17]} Re8 {[%emt 0:22:05]} 13. c3 {[%emt 0:08:38]} (13. Bf4 Nf8 14. h5 h6 15. Qd2 Nh7 16. c3 b5 17. Qe2 b4 18. c4 Nd4 19. Nxd4 cxd4 20. b3 {½-½ (82) Kokarev,D (2598)-Shuvalova,P (2441) Khanty-Mansiysk 2018}) 13... b5 {[%emt 0:01:27]} 14. Bf4 {[%emt 0:07:00]} Nb6 $146 {[%emt 0:01:41]} ({Predecessor:} 14... Bf8 15. Ng5 h6 16. Ngf3 b4 17. h5 Ba6 18. Bf1 bxc3 19. bxc3 Qa5 20. Rc1 {0-1 (54) Giffard,N (2390)-Borne,N (2315) Cannes 1995}) 15. Ng5 {[%emt 0:12:29]} h6 {[%emt 0:08:17]} 16. Qh5 {[%emt 0:23:39]} hxg5 {[%emt 0:03:29]} 17. hxg5 {[%emt 0:00:05]} Nd7 {[%emt 0:08:05]} 18. Ng4 $1 {[%emt 0:00:10]} Nf8 {[%emt 0:01:15]} (18... g6 $11 19. Qh4 Bf8) 19. Kh2 {[%emt 0:04:06]} Ng6 {[%emt 0:07:03]} 20. Rh1 {[%emt 0:00:52]} Nxf4 {[%emt 0:15:20]} 21. gxf4 {[%emt 0:00:18]} Bxg5 {[%emt 0:00:04]} 22. fxg5 Kf8 {[%emt 0:03:07]} 23. Qh8+ {[%emt 0:14:48]} Ke7 {[%emt 0:00:06]} 24. Qxg7 {[%emt 0:00:08]} Rh8+ {[%emt 0:01:34]} 25. Kg3 {[%emt 0:00:39]} Rg8 {[%emt 0:01:28]} 26. Qf6+ $18 {[%emt 0:00:44]} Kd7 {[%emt 0:02:17]} (26... Ke8 $142 27. f4 Qe7) 27. Qxf7+ {[%emt 0:01:18]} Ne7 {[%emt 0:01:03]} 28. Nf6+ {[%emt 0:00:50]} Kc6 {[%emt 0:00:09]} 29. Qxe6+ {[%emt 0:00:26]} 1-0